[Event "Titled Tuesday Blitz August 3 2021"]
[White "Matinian, Nikita"]
[Black "Jobava, Baadur"]
[WhiteFideId "24129100"]
[BlackFideId "13601520"]
[WhiteElo "2410"]
[BlackElo "2748"]
[Result "1-0"]
[Round "05"]
[TimeControl "180+1"]
[Date "2021.08.03"]
[WhiteClock "0:00:10"]
[BlackClock "0:00:29"]

1. e4 {[%clk 0:03:00]}  c6 {[%clk 0:03:00]} 2. Nc3 {[%clk 0:03:00]}  d5 {[%clk 0:03:01]} 3. Nf3 {[%clk 0:03:01]}  Bg4 {[%clk 0:03:00]} 4. h3 {[%clk 0:03:00]}  Bxf3 {[%clk 0:03:01]} 5. Qxf3 {[%clk 0:03:01]}  e6 {[%clk 0:03:01]} 6. g3 {[%clk 0:03:01]}  Nd7 {[%clk 0:03:01]} 7. d4 {[%clk 0:03:01]}  g6 {[%clk 0:03:01]} 8. Be3 {[%clk 0:03:00]}  h5 {[%clk 0:02:59]} 9. O-O-O {[%clk 0:02:59]}  Bh6 {[%clk 0:02:59]} 10. Kb1 {[%clk 0:02:49]}  Qe7 {[%clk 0:02:59]} 11. Bd3 {[%clk 0:02:43]}  O-O-O {[%clk 0:02:59]} 12. e5 {[%clk 0:02:34]}  Bxe3 {[%clk 0:02:57]} 13. fxe3 {[%clk 0:02:34]}  Nh6 {[%clk 0:02:57]} 14. Rhf1 {[%clk 0:02:29]}  Rdf8 {[%clk 0:02:56]} 15. e4 {[%clk 0:02:28]}  Kb8 {[%clk 0:02:53]} 16. exd5 {[%clk 0:02:27]}  cxd5 {[%clk 0:02:54]} 17. Nb5 {[%clk 0:02:26]}  Nf5 {[%clk 0:02:46]} 18. c3 {[%clk 0:02:19]}  a6 {[%clk 0:02:43]} 19. Bxf5 {[%clk 0:02:07]}  gxf5 {[%clk 0:02:44]} 20. Nd6 {[%clk 0:02:07]}  f6 {[%clk 0:02:44]} 21. Rfe1 {[%clk 0:02:07]}  h4 {[%clk 0:02:39]} 22. gxh4 {[%clk 0:02:00]}  fxe5 {[%clk 0:02:22]} 23. dxe5 {[%clk 0:02:01]}  Qxh4 {[%clk 0:02:22]} 24. Rg1 {[%clk 0:01:10]}  Rh7 {[%clk 0:02:04]} 25. c4 {[%clk 0:01:01]}  Nxe5 {[%clk 0:02:00]} 26. Qe2 {[%clk 0:00:56]}  Nxc4 {[%clk 0:01:55]} 27. Qxe6 {[%clk 0:00:56]}  Re7 {[%clk 0:01:45]} 28. Qg6 {[%clk 0:00:46]}  Ne3 {[%clk 0:01:34]} 29. Rc1 {[%clk 0:00:23]}  f4 {[%clk 0:01:05]} 30. Nxb7 {[%clk 0:00:21]}  Qf6 {[%clk 0:00:59]} 31. Na5 {[%clk 0:00:14]}  Ref7 {[%clk 0:00:50]} 32. Nc6+ {[%clk 0:00:12]}  Kb7 {[%clk 0:00:48]} 33. Qd3 {[%clk 0:00:06]}  Qf5 {[%clk 0:00:46]} 34. Qxf5 {[%clk 0:00:06]}  Nxf5 {[%clk 0:00:45]} 35. Rg5 {[%clk 0:00:03]}  f3 {[%clk 0:00:44]} 36. Ne5 {[%clk 0:00:03]}  f2 {[%clk 0:00:44]} 37. Nxf7 {[%clk 0:00:03]}  Rxf7 {[%clk 0:00:45]} 38. Rxf5 {[%clk 0:00:01]}  Rxf5 {[%clk 0:00:45]} 39. Rf1 {[%clk 0:00:02]}  d4 {[%clk 0:00:42]} 40. Kc2 {[%clk 0:00:03]}  Rf3 {[%clk 0:00:43]} 41. Kd2 {[%clk 0:00:04]}  d3 {[%clk 0:00:43]} 42. h4 {[%clk 0:00:04]}  Kc6 {[%clk 0:00:44]} 43. h5 {[%clk 0:00:05]}  Kd5 {[%clk 0:00:44]} 44. h6 {[%clk 0:00:05]}  Ke4 {[%clk 0:00:45]} 45. h7 {[%clk 0:00:06]}  Rh3 {[%clk 0:00:45]} 46. Rxf2 {[%clk 0:00:06]}  Rxh7 {[%clk 0:00:46]} 47. Rg2 {[%clk 0:00:07]}  Rh4 {[%clk 0:00:45]} 48. Rf2 {[%clk 0:00:07]}  Kd4 {[%clk 0:00:45]} 49. Rg2 {[%clk 0:00:07]}  a5 {[%clk 0:00:44]} 50. Rf2 {[%clk 0:00:08]}  a4 {[%clk 0:00:45]} 51. Rg2 {[%clk 0:00:08]}  Rf4 {[%clk 0:00:43]} 52. Rh2 {[%clk 0:00:08]}  Rg4 {[%clk 0:00:43]} 53. Rf2 {[%clk 0:00:08]}  Ke4 {[%clk 0:00:43]} 54. Rh2 {[%clk 0:00:09]}  Kd4 {[%clk 0:00:42]} 55. Rf2 {[%clk 0:00:09]}  Rh4 {[%clk 0:00:43]} 56. Rg2 {[%clk 0:00:09]}  Ke4 {[%clk 0:00:43]} 57. Rf2 {[%clk 0:00:10]}  Rh1 {[%clk 0:00:43]} 58. Rg2 {[%clk 0:00:10]}  Rb1 {[%clk 0:00:43]} 59. Rg4+ {[%clk 0:00:09]}  Kf3 {[%clk 0:00:43]} 60. Rxa4 {[%clk 0:00:09]}  Rxb2+ {[%clk 0:00:44]} 61. Kxd3 {[%clk 0:00:10]}  Rh2 {[%clk 0:00:39]} 62. Ra8 {[%clk 0:00:10]}  Kf4 {[%clk 0:00:39]} 63. Kd4 {[%clk 0:00:09]}  Rd2+ {[%clk 0:00:38]} 64. Kc3 {[%clk 0:00:09]}  Rh2 {[%clk 0:00:38]} 65. Kd4 {[%clk 0:00:08]}  Rd2+ {[%clk 0:00:37]} 66. Kc5 {[%clk 0:00:08]}  Ke5 {[%clk 0:00:37]} 67. Re8+ {[%clk 0:00:08]}  Kf6 {[%clk 0:00:38]} 68. a4 {[%clk 0:00:08]}  Kf7 {[%clk 0:00:38]} 69. Re3 {[%clk 0:00:08]}  Ra2 {[%clk 0:00:37]} 70. Kb5 {[%clk 0:00:08]}  Rc2 {[%clk 0:00:38]} 71. a5 {[%clk 0:00:08]}  Rb2+ {[%clk 0:00:37]} 72. Kc6 {[%clk 0:00:08]}  Ra2 {[%clk 0:00:36]} 73. Kb6 {[%clk 0:00:08]}  Rb2+ {[%clk 0:00:36]} 74. Ka7 {[%clk 0:00:08]}  Kf8 {[%clk 0:00:35]} 75. a6 {[%clk 0:00:08]}  Kf7 {[%clk 0:00:35]} 76. Ka8 {[%clk 0:00:08]}  Rb1 {[%clk 0:00:34]} 77. a7 {[%clk 0:00:08]}  Rb2 {[%clk 0:00:34]} 78. Rc3 {[%clk 0:00:09]}  Ke7 {[%clk 0:00:34]} 79. Rc8 {[%clk 0:00:09]}  Kd7 {[%clk 0:00:35]} 80. Rb8 {[%clk 0:00:10]}  Ra2 {[%clk 0:00:34]} 81. Kb7 {[%clk 0:00:10]}  Rb2+ {[%clk 0:00:34]} 82. Ka6 {[%clk 0:00:11]}  Ra2+ {[%clk 0:00:29]} 83. Kb6 {[%clk 0:00:11]}  Rc2 {[%clk 0:00:29]} 84. a8=Q {[%clk 0:00:10]} 1-0


[Site "https://www.chess.com"]

[Event "Titled Tuesday Blitz August 3 2021"]
[White "Mikhailovsky, Vladimir"]
[Black "Omk124"]
[WhiteFideId "34105414"]
[WhiteElo "2315"]
[BlackElo "2534"]
[Result "1-0"]
[Round "05"]
[TimeControl "180+1"]
[Date "2021.08.03"]
[WhiteClock "0:00:24"]
[BlackClock "0:00:05"]

1. e4 {[%clk 0:02:50]}  g6 {[%clk 0:03:00]} 2. d4 {[%clk 0:02:47]}  Bg7 {[%clk 0:03:00]} 3. Nc3 {[%clk 0:02:48]}  c6 {[%clk 0:03:00]} 4. f4 {[%clk 0:02:40]}  d5 {[%clk 0:03:00]} 5. e5 {[%clk 0:02:40]}  Nh6 {[%clk 0:03:00]} 6. Be3 {[%clk 0:02:29]}  f6 {[%clk 0:03:00]} 7. h3 {[%clk 0:02:28]}  fxe5 {[%clk 0:02:40]} 8. fxe5 {[%clk 0:02:15]}  Nf5 {[%clk 0:02:40]} 9. Bf2 {[%clk 0:02:15]}  Bh6 {[%clk 0:02:39]} 10. Qd3 {[%clk 0:02:03]}  O-O {[%clk 0:02:35]} 11. g4 {[%clk 0:02:03]}  Ng7 {[%clk 0:02:32]} 12. Be3 {[%clk 0:01:58]}  e6 {[%clk 0:02:18]} 13. h4 {[%clk 0:01:45]}  Bxe3 {[%clk 0:02:13]} 14. Qxe3 {[%clk 0:01:45]}  c5 {[%clk 0:02:14]} 15. Nge2 {[%clk 0:01:32]}  Nc6 {[%clk 0:02:06]} 16. O-O-O {[%clk 0:01:32]}  cxd4 {[%clk 0:01:59]} 17. Nxd4 {[%clk 0:01:33]}  Nxd4 {[%clk 0:01:36]} 18. Rxd4 {[%clk 0:01:33]}  Bd7 {[%clk 0:01:36]} 19. Bd3 {[%clk 0:01:20]}  Be8 {[%clk 0:00:44]} 20. h5 {[%clk 0:01:12]}  Qb6 {[%clk 0:00:41]} 21. h6 {[%clk 0:00:54]}  Rc8 {[%clk 0:00:14]} 22. hxg7 {[%clk 0:00:53]}  Rf7 {[%clk 0:00:14]} 23. Bxg6 {[%clk 0:00:42]}  Rxg7 {[%clk 0:00:08]} 24. Bxe8 {[%clk 0:00:34]}  Rxe8 {[%clk 0:00:09]} 25. Rf1 {[%clk 0:00:28]}  Qc6 {[%clk 0:00:09]} 26. Rdf4 {[%clk 0:00:27]}  b5 {[%clk 0:00:09]} 27. Qf2 {[%clk 0:00:25]}  b4 {[%clk 0:00:05]} 28. Rf8+ {[%clk 0:00:24]} 1-0


[Site "https://www.chess.com"]

[Event "Titled Tuesday Blitz August 3 2021"]
[White "Mohammad Nubairshah Shaikh"]
[Black "Vokhidov, Shamsiddin"]
[WhiteFideId "5053196"]
[BlackFideId "14204223"]
[WhiteElo "2382"]
[BlackElo "2572"]
[Result "1-0"]
[Round "05"]
[TimeControl "180+1"]
[Date "2021.08.03"]
[WhiteClock "0:00:30"]
[BlackClock "0:00:04"]

1. c4 {[%clk 0:02:54]}  e5 {[%clk 0:02:58]} 2. g3 {[%clk 0:02:54]}  Nf6 {[%clk 0:02:57]} 3. Bg2 {[%clk 0:02:54]}  Nc6 {[%clk 0:02:58]} 4. Nc3 {[%clk 0:02:53]}  Bb4 {[%clk 0:02:57]} 5. Nd5 {[%clk 0:02:49]}  Bc5 {[%clk 0:02:57]} 6. e3 {[%clk 0:02:49]}  d6 {[%clk 0:02:57]} 7. Ne2 {[%clk 0:02:48]}  a6 {[%clk 0:02:57]} 8. d4 {[%clk 0:02:48]}  Ba7 {[%clk 0:02:57]} 9. O-O {[%clk 0:02:46]}  O-O {[%clk 0:02:56]} 10. b3 {[%clk 0:02:20]}  exd4 {[%clk 0:02:56]} 11. Nxf6+ {[%clk 0:02:20]}  Qxf6 {[%clk 0:02:54]} 12. Bb2 {[%clk 0:02:20]}  Ne5 {[%clk 0:02:50]} 13. Nxd4 {[%clk 0:02:17]}  Bg4 {[%clk 0:02:42]} 14. f3 {[%clk 0:02:16]}  Bd7 {[%clk 0:02:42]} 15. Qd2 {[%clk 0:02:15]}  Qh6 {[%clk 0:02:30]} 16. Rae1 {[%clk 0:01:57]}  Rae8 {[%clk 0:02:24]} 17. f4 {[%clk 0:01:54]}  Ng4 {[%clk 0:02:23]} 18. Bxb7 {[%clk 0:01:48]}  Bc5 {[%clk 0:02:11]} 19. Re2 {[%clk 0:01:39]}  Nf6 {[%clk 0:02:06]} 20. Bg2 {[%clk 0:01:36]}  Ne4 {[%clk 0:02:02]} 21. Qc2 {[%clk 0:01:36]}  f5 {[%clk 0:01:59]} 22. Rd1 {[%clk 0:01:30]}  Re7 {[%clk 0:01:58]} 23. a3 {[%clk 0:01:29]}  Rfe8 {[%clk 0:01:57]} 24. b4 {[%clk 0:01:26]}  Ba7 {[%clk 0:01:57]} 25. c5 {[%clk 0:01:19]}  dxc5 {[%clk 0:01:57]} 26. bxc5 {[%clk 0:01:20]}  Qg6 {[%clk 0:01:44]} 27. c6 {[%clk 0:01:20]}  Bc8 {[%clk 0:01:44]} 28. Nf3 {[%clk 0:01:18]}  Re6 {[%clk 0:01:10]} 29. Ne5 {[%clk 0:01:17]}  Qh5 {[%clk 0:01:10]} 30. Bd4 {[%clk 0:01:16]}  Bxd4 {[%clk 0:01:05]} 31. Rxd4 {[%clk 0:01:17]}  Nf6 {[%clk 0:01:00]} 32. Bf3 {[%clk 0:01:15]}  Ng4 {[%clk 0:00:57]} 33. Qb3 {[%clk 0:01:11]}  Kh8 {[%clk 0:00:51]} 34. Red2 {[%clk 0:01:08]}  h6 {[%clk 0:00:45]} 35. Rd8 {[%clk 0:01:03]}  Kh7 {[%clk 0:00:44]} 36. Bxg4 {[%clk 0:00:52]}  fxg4 {[%clk 0:00:44]} 37. Qc2+ {[%clk 0:00:52]}  Kg8 {[%clk 0:00:39]} 38. Qc4 {[%clk 0:00:49]}  Kh7 {[%clk 0:00:36]} 39. Qe4+ {[%clk 0:00:49]}  Kg8 {[%clk 0:00:35]} 40. Qd5 {[%clk 0:00:48]}  Rxd8 {[%clk 0:00:33]} 41. Qxd8+ {[%clk 0:00:47]}  Re8 {[%clk 0:00:34]} 42. Qxc7 {[%clk 0:00:47]}  Qf5 {[%clk 0:00:33]} 43. Qb6 {[%clk 0:00:42]}  Qe4 {[%clk 0:00:32]} 44. c7 {[%clk 0:00:42]}  Bb7 {[%clk 0:00:32]} 45. Qb3+ {[%clk 0:00:39]}  Kh8 {[%clk 0:00:30]} 46. Nf7+ {[%clk 0:00:32]}  Kh7 {[%clk 0:00:25]} 47. Qc2 {[%clk 0:00:32]}  Qxc2 {[%clk 0:00:03]} 48. Rxc2 {[%clk 0:00:33]}  Rxe3 {[%clk 0:00:04]} 49. Nd6 {[%clk 0:00:30]} 1-0


[Site "https://www.chess.com"]

[Event "Titled Tuesday Blitz August 3 2021"]
[White "Molina, Roberto Junio Brito"]
[Black "Hryshchenko, Kamila"]
[WhiteFideId "2109450"]
[BlackFideId "14147491"]
[WhiteElo "2402"]
[BlackElo "1966"]
[Result "1-0"]
[Round "05"]
[TimeControl "180+1"]
[Date "2021.08.03"]
[WhiteClock "0:00:54"]
[BlackClock "0:01:30"]

1. d4 {[%clk 0:03:00]}  d5 {[%clk 0:02:56]} 2. c4 {[%clk 0:03:00]}  g6 {[%clk 0:02:55]} 3. cxd5 {[%clk 0:02:59]}  Qxd5 {[%clk 0:02:55]} 4. Nc3 {[%clk 0:02:58]}  Qd8 {[%clk 0:02:55]} 5. e4 {[%clk 0:02:58]}  Bg7 {[%clk 0:02:56]} 6. Be3 {[%clk 0:02:58]}  c6 {[%clk 0:02:56]} 7. Qd2 {[%clk 0:02:58]}  Nd7 {[%clk 0:02:55]} 8. h4 {[%clk 0:02:57]}  h5 {[%clk 0:02:54]} 9. Nh3 {[%clk 0:02:55]}  Nb6 {[%clk 0:02:53]} 10. Ng5 {[%clk 0:02:53]}  Nf6 {[%clk 0:02:53]} 11. f3 {[%clk 0:02:52]}  O-O {[%clk 0:02:49]} 12. O-O-O {[%clk 0:02:50]}  a5 {[%clk 0:02:46]} 13. Kb1 {[%clk 0:02:45]}  a4 {[%clk 0:02:46]} 14. Be2 {[%clk 0:02:45]}  a3 {[%clk 0:02:45]} 15. b3 {[%clk 0:02:45]}  Nbd7 {[%clk 0:02:28]} 16. e5 {[%clk 0:02:37]}  Nd5 {[%clk 0:02:27]} 17. Nxd5 {[%clk 0:02:37]}  cxd5 {[%clk 0:02:27]} 18. f4 {[%clk 0:02:34]}  Qb6 {[%clk 0:02:21]} 19. g4 {[%clk 0:02:12]}  f6 {[%clk 0:02:19]} 20. gxh5 {[%clk 0:01:51]}  fxg5 {[%clk 0:02:16]} 21. hxg5 {[%clk 0:01:50]}  Rd8 {[%clk 0:02:09]} 22. Bd3 {[%clk 0:01:45]}  Nf8 {[%clk 0:02:08]} 23. hxg6 {[%clk 0:01:42]}  e6 {[%clk 0:01:51]} 24. Rh2 {[%clk 0:01:30]}  Bd7 {[%clk 0:01:50]} 25. Rdh1 {[%clk 0:01:29]}  Be8 {[%clk 0:01:43]} 26. Rh6 {[%clk 0:01:09]}  Ba4 {[%clk 0:01:40]} 27. Qh2 {[%clk 0:01:05]}  Nxg6 {[%clk 0:01:33]} 28. Rxg6 {[%clk 0:01:03]}  Kf7 {[%clk 0:01:29]} 29. Rxg7+ {[%clk 0:00:54]}  Kxg7 {[%clk 0:01:30]} 30. Qh7+ {[%clk 0:00:54]} 1-0


[Site "https://www.chess.com"]

[Event "Titled Tuesday Blitz August 3 2021"]
[White "Nguyen Hong Nhung"]
[Black "Zhurbinsky, David"]
[WhiteFideId "12412201"]
[BlackFideId "2072904"]
[WhiteElo "1661"]
[BlackElo "2559"]
[Result "0-1"]
[Round "05"]
[TimeControl "180+1"]
[Date "2021.08.03"]
[WhiteClock "0:00:05"]
[BlackClock "0:00:33"]

1. e4 {[%clk 0:03:00]}  e5 {[%clk 0:03:00]} 2. Nf3 {[%clk 0:03:00]}  Nc6 {[%clk 0:03:00]} 3. d4 {[%clk 0:03:00]}  exd4 {[%clk 0:03:01]} 4. Nxd4 {[%clk 0:03:01]}  Bc5 {[%clk 0:03:02]} 5. Be3 {[%clk 0:03:00]}  Qf6 {[%clk 0:03:02]} 6. c3 {[%clk 0:03:01]}  Nge7 {[%clk 0:03:01]} 7. Bc4 {[%clk 0:03:01]}  O-O {[%clk 0:03:01]} 8. O-O {[%clk 0:03:01]}  Ne5 {[%clk 0:03:01]} 9. Bb3 {[%clk 0:03:01]}  d5 {[%clk 0:02:56]} 10. exd5 {[%clk 0:02:35]}  Ng4 {[%clk 0:02:38]} 11. Qd3 {[%clk 0:02:04]}  Qe5 {[%clk 0:02:22]} 12. Nf3 {[%clk 0:01:52]}  Qd6 {[%clk 0:02:11]} 13. Bxc5 {[%clk 0:01:51]}  Qxc5 {[%clk 0:02:11]} 14. h3 {[%clk 0:01:43]}  Nf6 {[%clk 0:02:06]} 15. c4 {[%clk 0:01:41]}  Bf5 {[%clk 0:02:05]} 16. Qd4 {[%clk 0:01:41]}  Qd6 {[%clk 0:01:59]} 17. Nbd2 {[%clk 0:01:35]}  Ng6 {[%clk 0:01:55]} 18. Rfe1 {[%clk 0:01:26]}  Rfe8 {[%clk 0:01:45]} 19. c5 {[%clk 0:01:24]}  Qf4 {[%clk 0:01:27]} 20. Rad1 {[%clk 0:01:04]}  Qh6 {[%clk 0:01:18]} 21. d6 {[%clk 0:00:56]}  cxd6 {[%clk 0:01:16]} 22. cxd6 {[%clk 0:00:57]}  Nf4 {[%clk 0:01:07]} 23. Rxe8+ {[%clk 0:00:46]}  Rxe8 {[%clk 0:01:07]} 24. Qc4 {[%clk 0:00:44]}  Be6 {[%clk 0:00:57]} 25. Qb5 {[%clk 0:00:41]}  Bxh3 {[%clk 0:00:44]} 26. gxh3 {[%clk 0:00:15]}  Qxh3 {[%clk 0:00:42]} 27. Bxf7+ {[%clk 0:00:16]}  Kf8 {[%clk 0:00:33]} 28. Ne1 {[%clk 0:00:07]}  Rxe1+ {[%clk 0:00:32]} 29. Rxe1 {[%clk 0:00:05]}  Qg2# {[%clk 0:00:33]} 0-1


[Site "https://www.chess.com"]

[Event "Titled Tuesday Blitz August 3 2021"]
[White "Noritsyn, Nikolay"]
[Black "Skatchkov, Pavel"]
[WhiteFideId "2604922"]
[BlackFideId "4121848"]
[WhiteElo "2527"]
[BlackElo "2476"]
[Result "0-1"]
[Round "05"]
[TimeControl "180+1"]
[Date "2021.08.03"]
[WhiteClock "0:00:16"]
[BlackClock "0:00:17"]

1. e4 {[%clk 0:03:00]}  c5 {[%clk 0:02:57]} 2. Nf3 {[%clk 0:03:00]}  Nc6 {[%clk 0:02:58]} 3. Bb5 {[%clk 0:02:57]}  g6 {[%clk 0:02:57]} 4. O-O {[%clk 0:02:56]}  Bg7 {[%clk 0:02:58]} 5. Re1 {[%clk 0:02:54]}  e5 {[%clk 0:02:58]} 6. Bc4 {[%clk 0:02:46]}  Nge7 {[%clk 0:02:56]} 7. d3 {[%clk 0:02:46]}  O-O {[%clk 0:02:56]} 8. c3 {[%clk 0:02:45]}  d5 {[%clk 0:02:55]} 9. exd5 {[%clk 0:02:43]}  Nxd5 {[%clk 0:02:55]} 10. Nbd2 {[%clk 0:02:42]}  Be6 {[%clk 0:02:53]} 11. Ne4 {[%clk 0:02:41]}  b6 {[%clk 0:02:45]} 12. Neg5 {[%clk 0:02:29]}  Bc8 {[%clk 0:02:44]} 13. Qe2 {[%clk 0:02:16]}  h6 {[%clk 0:02:38]} 14. Ne4 {[%clk 0:02:15]}  Be6 {[%clk 0:02:38]} 15. Bb5 {[%clk 0:02:05]}  Qc7 {[%clk 0:02:23]} 16. Ng3 {[%clk 0:02:03]}  Nf4 {[%clk 0:02:22]} 17. Bxf4 {[%clk 0:01:51]}  exf4 {[%clk 0:02:23]} 18. Ne4 {[%clk 0:01:51]}  Rad8 {[%clk 0:02:14]} 19. Qc2 {[%clk 0:01:47]}  Na5 {[%clk 0:01:48]} 20. Ned2 {[%clk 0:01:41]}  Bd5 {[%clk 0:01:31]} 21. Qa4 {[%clk 0:01:31]}  Nb7 {[%clk 0:01:13]} 22. Bc4 {[%clk 0:01:13]}  Bc6 {[%clk 0:01:12]} 23. Bb5 {[%clk 0:01:12]}  Bd5 {[%clk 0:01:12]} 24. h3 {[%clk 0:01:08]}  a6 {[%clk 0:01:03]} 25. Bxa6 {[%clk 0:00:58]}  Ra8 {[%clk 0:01:03]} 26. Bxb7 {[%clk 0:00:40]}  Rxa4 {[%clk 0:01:04]} 27. Bxd5 {[%clk 0:00:40]}  Qd7 {[%clk 0:01:03]} 28. Bb3 {[%clk 0:00:39]}  Raa8 {[%clk 0:01:01]} 29. Rad1 {[%clk 0:00:38]}  b5 {[%clk 0:00:56]} 30. Ne4 {[%clk 0:00:37]}  Qc7 {[%clk 0:00:55]} 31. a3 {[%clk 0:00:35]}  Rad8 {[%clk 0:00:54]} 32. Bc2 {[%clk 0:00:33]}  g5 {[%clk 0:00:53]} 33. a4 {[%clk 0:00:32]}  b4 {[%clk 0:00:52]} 34. Bb3 {[%clk 0:00:31]}  bxc3 {[%clk 0:00:50]} 35. bxc3 {[%clk 0:00:32]}  Kh7 {[%clk 0:00:49]} 36. Bc4 {[%clk 0:00:30]}  f5 {[%clk 0:00:49]} 37. Ned2 {[%clk 0:00:29]}  Bxc3 {[%clk 0:00:49]} 38. Re6 {[%clk 0:00:24]}  Rd6 {[%clk 0:00:48]} 39. Rxd6 {[%clk 0:00:21]}  Qxd6 {[%clk 0:00:47]} 40. Bb5 {[%clk 0:00:19]}  g4 {[%clk 0:00:45]} 41. hxg4 {[%clk 0:00:19]}  fxg4 {[%clk 0:00:46]} 42. Ne4 {[%clk 0:00:19]}  Qe7 {[%clk 0:00:27]} 43. Nh2 {[%clk 0:00:18]}  g3 {[%clk 0:00:24]} 44. Nf3 {[%clk 0:00:17]}  gxf2+ {[%clk 0:00:23]} 45. Kxf2 {[%clk 0:00:17]}  Bd4+ {[%clk 0:00:22]} 46. Kf1 {[%clk 0:00:17]}  Qf7 {[%clk 0:00:17]} 47. Bc4 {[%clk 0:00:17]}  Qh5 {[%clk 0:00:17]} 48. a5 {[%clk 0:00:16]}  Qh1+ {[%clk 0:00:17]} 0-1


[Site "https://www.chess.com"]

[Event "Titled Tuesday Blitz August 3 2021"]
[White "Odegov, Artem"]
[Black "Kavyev, Ruslan"]
[WhiteFideId "34183644"]
[BlackFideId "34110981"]
[WhiteElo "2288"]
[BlackElo "2172"]
[Result "1-0"]
[Round "05"]
[TimeControl "180+1"]
[Date "2021.08.03"]
[WhiteClock "0:01:47"]
[BlackClock "0:02:01"]

1. d4 {[%clk 0:02:55]}  Nf6 {[%clk 0:03:00]} 2. c4 {[%clk 0:02:54]}  g6 {[%clk 0:03:01]} 3. Nc3 {[%clk 0:02:54]}  d5 {[%clk 0:03:01]} 4. cxd5 {[%clk 0:02:55]}  Nxd5 {[%clk 0:03:02]} 5. e4 {[%clk 0:02:55]}  Nxc3 {[%clk 0:03:03]} 6. bxc3 {[%clk 0:02:56]}  Bg7 {[%clk 0:03:03]} 7. Bc4 {[%clk 0:02:57]}  c5 {[%clk 0:03:04]} 8. Ne2 {[%clk 0:02:57]}  Nc6 {[%clk 0:03:04]} 9. Be3 {[%clk 0:02:57]}  O-O {[%clk 0:03:05]} 10. O-O {[%clk 0:02:57]}  Bg4 {[%clk 0:03:04]} 11. f3 {[%clk 0:02:56]}  Bd7 {[%clk 0:03:05]} 12. Qd2 {[%clk 0:02:55]}  Qa5 {[%clk 0:03:05]} 13. Rfd1 {[%clk 0:02:52]}  Rfd8 {[%clk 0:03:01]} 14. Rab1 {[%clk 0:02:50]}  Rac8 {[%clk 0:02:51]} 15. Rxb7 {[%clk 0:02:35]}  cxd4 {[%clk 0:02:50]} 16. cxd4 {[%clk 0:02:35]}  Qxd2 {[%clk 0:02:50]} 17. Rxd2 {[%clk 0:02:35]}  Na5 {[%clk 0:02:51]} 18. Rxd7 {[%clk 0:02:33]}  Rxd7 {[%clk 0:02:39]} 19. Bb5 {[%clk 0:02:32]}  Rdc7 {[%clk 0:02:37]} 20. Ba6 {[%clk 0:02:18]}  Rb8 {[%clk 0:02:35]} 21. Bf4 {[%clk 0:02:17]}  Rb1+ {[%clk 0:02:34]} 22. Kf2 {[%clk 0:02:16]}  Rc6 {[%clk 0:02:31]} 23. Bd3 {[%clk 0:02:14]}  e6 {[%clk 0:02:18]} 24. Bxb1 {[%clk 0:02:11]}  Rb6 {[%clk 0:02:12]} 25. Bd3 {[%clk 0:02:10]}  Bf8 {[%clk 0:02:10]} 26. Bc7 {[%clk 0:02:10]}  Bb4 {[%clk 0:02:05]} 27. Bxb6 {[%clk 0:01:56]}  Bxd2 {[%clk 0:02:05]} 28. Bxa5 {[%clk 0:01:56]}  Bxa5 {[%clk 0:02:04]} 29. e5 {[%clk 0:01:55]}  Kf8 {[%clk 0:02:05]} 30. Ke3 {[%clk 0:01:55]}  Ke8 {[%clk 0:02:06]} 31. Ng3 {[%clk 0:01:55]}  Kd7 {[%clk 0:02:07]} 32. Ne4 {[%clk 0:01:55]}  Bb6 {[%clk 0:02:07]} 33. Nf6+ {[%clk 0:01:54]}  Kc6 {[%clk 0:02:07]} 34. Nxh7 {[%clk 0:01:55]}  Kd5 {[%clk 0:02:04]} 35. Ng5 {[%clk 0:01:54]}  f5 {[%clk 0:02:02]} 36. exf6 {[%clk 0:01:54]}  Bxd4+ {[%clk 0:02:01]} 37. Ke2 {[%clk 0:01:52]}  Bxf6 {[%clk 0:02:02]} 38. Nh7 {[%clk 0:01:51]}  Bg7 {[%clk 0:02:01]} 39. Bxg6 {[%clk 0:01:51]}  Kd4 {[%clk 0:02:02]} 40. Ng5 {[%clk 0:01:49]}  Ke5 {[%clk 0:02:01]} 41. Bb1 {[%clk 0:01:47]}  Bh6 {[%clk 0:02:01]} 42. Nf7+ {[%clk 0:01:47]} 1-0


[Site "https://www.chess.com"]

[Event "Titled Tuesday Blitz August 3 2021"]
[White "Ozen, Bahadir"]
[Black "Melikhov, Evgeny V."]
[WhiteFideId "6337058"]
[BlackFideId "4122046"]
[WhiteElo "2503"]
[BlackElo "1965"]
[Result "1/2-1/2"]
[Round "05"]
[TimeControl "180+1"]
[Date "2021.08.03"]
[WhiteClock "0:01:05"]
[BlackClock "0:01:14"]

1. c4 {[%clk 0:03:00]}  e6 {[%clk 0:02:51]} 2. g3 {[%clk 0:02:56]}  d5 {[%clk 0:02:50]} 3. Bg2 {[%clk 0:02:56]}  c5 {[%clk 0:02:50]} 4. cxd5 {[%clk 0:02:55]}  exd5 {[%clk 0:02:50]} 5. Nf3 {[%clk 0:02:51]}  Nc6 {[%clk 0:02:49]} 6. O-O {[%clk 0:02:51]}  Nf6 {[%clk 0:02:49]} 7. d4 {[%clk 0:02:37]}  Be7 {[%clk 0:02:48]} 8. dxc5 {[%clk 0:02:34]}  Bxc5 {[%clk 0:02:48]} 9. Bg5 {[%clk 0:02:32]}  O-O {[%clk 0:02:43]} 10. Bxf6 {[%clk 0:02:22]}  Qxf6 {[%clk 0:02:43]} 11. Nc3 {[%clk 0:02:23]}  Be6 {[%clk 0:02:31]} 12. Nxd5 {[%clk 0:02:23]}  Qxb2 {[%clk 0:02:30]} 13. Nc7 {[%clk 0:02:23]}  Rad8 {[%clk 0:02:27]} 14. Qc1 {[%clk 0:02:17]}  Qxc1 {[%clk 0:02:22]} 15. Rfxc1 {[%clk 0:02:14]}  Bb6 {[%clk 0:02:22]} 16. Nxe6 {[%clk 0:02:14]}  fxe6 {[%clk 0:02:23]} 17. e3 {[%clk 0:02:10]}  Nb4 {[%clk 0:02:01]} 18. Ne5 {[%clk 0:01:55]}  Nd3 {[%clk 0:01:59]} 19. Nxd3 {[%clk 0:01:54]}  Rxd3 {[%clk 0:01:58]} 20. Rc2 {[%clk 0:01:50]}  Rd7 {[%clk 0:01:43]} 21. Be4 {[%clk 0:01:28]}  g6 {[%clk 0:01:41]} 22. a4 {[%clk 0:01:26]}  Rfd8 {[%clk 0:01:34]} 23. a5 {[%clk 0:01:24]}  Rd1+ {[%clk 0:01:34]} 24. Rxd1 {[%clk 0:01:21]}  Rxd1+ {[%clk 0:01:35]} 25. Kg2 {[%clk 0:01:21]}  Bxa5 {[%clk 0:01:35]} 26. Bxb7 {[%clk 0:01:18]}  Be1 {[%clk 0:01:17]} 27. Ra2 {[%clk 0:01:06]}  Rd2 {[%clk 0:01:14]} 28. Rxd2 {[%clk 0:01:05]} 1/2-1/2


[Site "https://www.chess.com"]